Cogmind - Beta 15 @@@ ROGUE MODE // 2025.07.27 @ 16:18:24 Player: Nat Result: Destroyed by G-47 Trooper with Particle Gun Performance ------------- Evolutions (2) 1000 Regions Visited (3) 600 Robots Destroyed (28) 140 Value Destroyed (804) 804 Prototype IDs (0) 0 Alien Tech Used (0) 0 Bonus (0) 0 TOTAL SCORE: 2544 Bonus ------- None Cogmind --------- Core Integrity 0/550 Matter 24/300 Energy 97/100 System Corruption 0% Temperature Cool (10) Movement Treading (145) Location -8/Materials Parts ------- > --- POWER (3) -------- (None) > --- PROPULSION (3) --- Advanced Treads > --- UTILITY (3) ------ Improved Terrain Scan Processor Hacking Suite > --- WEAPON (2) ------- (None) > --- INVENTORY (5) ---- Heat Sink Peak State ------------ > --- POWER ------------ (None) > --- PROPULSION ------- Improved Aluminum Leg > --- UTILITY ---------- Compact Battery Trap Scanner Improved Terrain Scan Processor > --- WEAPON ----------- Shotgun > --- INVENTORY -------- Heat Sink Medium Laser [Rating: 13] Favorites ----------- Power Ion Engine Engine Ion Engine Propulsion Wheel Treads Improved Treads Leg Aluminum Leg Wheel Wheel Flight Unit Flight Unit Utility Improved Terrain Scan Processor Device Shield Generator Storage Compact Battery Processor Improved Terrain Scan Processor Hackware Hacking Suite Weapon Mini Grenade Launcher Energy Gun Medium Laser Energy Cannon Heavy Particle Cannon Ballistic Gun Minigun Launcher Mini Grenade Launcher Build | -11 -10 -9 -8 ------- Run | Yrd Mat Mat Mat Slots Evolved 4 | . . 2 2 Power 2 | . . 1 1 Propulsion 1 | . . 1 . Utility 1 | . . . 1 Weapon . | . . . . Parts Attached 29 | 5 5 12 7 Power 5 | 2 . . 3 Engine 5 | 2 . . 3 Core . | . . . . Reactor . | . . . . Propulsion 9 | 2 2 4 1 Treads 2 | . . 1 1 Leg 3 | . . 3 . Wheel 3 | 2 1 . . Hover . | . . . . Flight 1 | . 1 . . Utility 7 | . 1 3 3 Device 3 | . . 2 1 Storage 1 | . . . 1 Processor 2 | . 1 1 . Hackware 1 | . . . 1 Protection . | . . . . Artifact . | . . . . Weapon 8 | 1 2 5 . Energy Gun 2 | 1 1 . . Energy Cannon 1 | . . 1 . Ballistic Gun 4 | . 1 3 . Ballistic Cannon . | . . . . Launcher 1 | . . 1 . Special Weapon . | . . . . Impact Weapon . | . . . . Slashing Weapon . | . . . . Piercing Weapon . | . . . . Special Melee Weapon . | . . . . Unidentified Prototypes . | . . . . Parts Lost 13 | . . 6 7 Power 3 | . . . 3 Propulsion 3 | . . 2 1 Utility 3 | . . 1 2 Weapon 4 | . . 3 1 Highest Loss Streak 7 | . . 4 7 To Critical Strikes . | . . . . Average Backups 1 | . 1 2 1 Power . | . . . . Propulsion . | . . . . Utility . | . . . 1 Weapon 1 | . . 1 . Tool/Special . | . . . . Unused Backups 1 | . 1 . . Power . | . . . . Propulsion . | . . . . Utility 1 | . 1 . . Weapon . | . . . . Tool/Special . | . . . . Average Slot Usage (%) 51 | . 62 53 32 Engine 4 | . 14 2 2 Treads 4 | . . 5 1 Leg 2 | . . 2 5 Wheel 8 | . 24 6 . Device 6 | . . 7 4 Processor 8 | . 4 9 9 Energy Gun 2 | . 12 . . Energy Cannon 3 | . . 4 . Ballistic Gun 6 | . 4 6 5 Launcher 5 | . . 7 . Peak Build Rating 13 | 4 7 12 13 Average Rating 8 | 3 4 9 9 On Entrance 4 | . 4 7 7 Naked Turns . | . . . . Heaviest Build 11 | 7 8 11 9 Greatest Support 23 | 20 20 23 22 Greatest Overweight (x) 2 | . 1 2 2 Average Overweight (x) . | . . . . Largest Inventory Capacity 5 | 5 5 5 5 Average Capacity 5 | 5 5 5 5 Most Carried 4 | 2 3 3 4 Average Carried 1 | . 1 2 1 Final Capacity 5 | 5 5 5 5 Final Carried 2 | 2 . 2 1 Class Distribution -------------------- 96% | Mutant 3% | Scavenger-Mutant Dominant Class ---------------- Mutant | -10/Materials Mutant | -9/Materials Mutant | -8/Materials Resources | -11 -10 -9 -8 ----------- Run | Yrd Mat Mat Mat Matter Collected 491 | 240 51 185 15 Remotely . | . . . . Salvage Created 711 | 35 76 551 49 Parts 55 | 2 6 39 8 Haulers Intercepted . | . . . . Recyclers Shooed . | . . . . Parts Field Recycled . | . . . . Retrieved Matter . | . . . . Parts Self-Destructed . | . . . . Prevented . | . . . . Kills | -11 -10 -9 -8 ------- Run | Yrd Mat Mat Mat Combat Hostiles Destroyed 25 | 1 3 17 4 Guns 14 | . 3 7 4 Cannons 5 | . . 5 . AOE 5 | . . 5 . Classes Destroyed 5 | 1 2 2 . Watcher 3 | . 1 2 . Swarmer 10 | . 3 3 4 Grunt 11 | 1 . 10 . Duelist 1 | . . 1 . Sentry 3 | . . 3 . Best Kill Streak 4 | 1 3 4 4 Combat Bots Only 4 | 1 3 4 4 Max Kills in Single Turn 1 | 1 1 1 1 Gunslinging . | . . . . Exploded 1 | . . 1 . Melee . | . . . . Uniques/NPCs Destroyed . | . . . . Combat | -11 -10 -9 -8 -------- Run | Yrd Mat Mat Mat Hostile Shots Fired 238 | 5 9 87 137 Missed 73 | 1 4 23 45 Hits 165 | 4 5 64 92 Melee 6 | . . 6 . Projectile 159 | 4 5 58 92 Critical Strikes 6 | . . 5 1 Part Disruptions 1 | . . 1 . Damage Taken 2218 | 48 86 1023 1061 Core 951 | 36 21 344 550 Absorbed by Shields . | . . . . Core Remaining (%) 58 | 85 77 14 . Volleys Fired 74 | 5 6 54 9 Largest 2 | 1 2 2 1 Hottest 75 | 50 70 75 23 Shots Fired 85 | 5 7 64 9 Gun 50 | 5 7 29 9 Cannon 21 | . . 21 . Launcher 14 | . . 14 . Special . | . . . . Kinetic 39 | . 1 29 9 Thermal 32 | 5 6 21 . Explosive 14 | . . 14 . Electromagnetic . | . . . . Robot Hit Streak 9 | 4 7 9 2 Robot Miss Streak 5 | 1 1 5 3 Penetration Max . | . . . . Secondary Targets . | . . . . Shots Hit Robots 53 | 4 5 39 5 Core Hits 36 | 1 4 27 4 Critical Kills . | . . . . Critical Parts Destroyed . | . . . . Critical Strikes 3 | 2 1 . . Burn 3 | 2 1 . . Melee Attacks . | . . . . Impact . | . . . . Slashing . | . . . . Piercing . | . . . . Sneak Attacks . | . . . . Combat Hostiles . | . . . . Follow-up Attacks . | . . . . Damage Inflicted 1515 | 49 63 1298 105 Guns 543 | 49 63 326 105 Cannons 350 | . . 350 . Explosions 615 | . . 615 . Melee . | . . . . Ramming 7 | . . 7 . Kinetic 431 | . . 326 105 Thermal 462 | 49 63 350 . Explosive 511 | . . 511 . Electromagnetic 104 | . . 104 . Impact . | . . . . Slashing . | . . . . Piercing . | . . . . Highest Corruption 1 | . . 1 . Average Corruption 1 | . . 1 . Corruption Purged . | . . . . Corruption Blocked . | . . . . Overload Shots . | . . . . Overflow Damage 21 | . . 21 . Projectiles . | . . . . Explosions 21 | . . 21 . Melee . | . . . . Knockbacks . | . . . . Impact . | . . . . Kinetic . | . . . . Secondary . | . . . . Self-Inflicted Damage 119 | . . 119 . Shots 4 | . . 4 . Rammed 2 | . . 2 . Targets Rammed 2 | . . 2 . Kicked . | . . . . Crushed . | . . . . Highest Temperature 318 | 64 50 318 7 Average Temperature 63 | 35 24 75 7 Received Heat Transfer 648 | 24 . 408 216 Effects 1 | . . 1 . Matter Decay 1 | . . 1 . Siege Activations . | . . . . Martial Activations . | . . . . Shielding Activations . | . . . . Robots Disrupted . | . . . . Combat Hostiles . | . . . . Robots Corrupted . | . . . . Combat Hostiles . | . . . . Parts Fried . | . . . . Impact Corruptions . | . . . . Robots Melted 1 | 1 . . . Combat Hostiles 1 | 1 . . . Parts Melted 5 | 1 2 2 . Heat Transferred 1073 | 296 259 518 . Parts Sabotaged . | . . . . Parts Stolen . | . . . . Parts Stripped . | . . . . Power Chain Reactions . | . . . . Alert | -11 -10 -9 -8 ------- Run | Yrd Mat Mat Mat Maximum Alert Level 1 | . . 1 . Low Security (%) 62 | 100 100 43 100 Level 1 37 | . . 56 . Level 2 . | . . . . Level 3 . | . . . . Level 4 . | . . . . Level 5 . | . . . . High Security . | . . . . Max Security . | . . . . Peak Influence 338 | 10 105 338 179 Initial 139 | . 6 29 139 Average 140 | 1 63 173 123 Influence Increases 880 | 20 122 648 90 Destroy 0b10 Robot/C 500 | 20 60 340 80 Destroy 0b10 Robot/NC 15 | . 5 10 . Destroy Leader 96 | . 12 74 10 Successful Hack 2 | . . 2 . Disable Machine 150 | . . 150 . Destroy Structure 72 | . . 72 . Lose Combat Pursuer 45 | . 45 . . Influence Decreases 791 | 10 60 390 331 Entered New Map 238 | . 4 43 191 Time Decay 423 | 10 56 287 70 Lost Part 130 | . . 60 70 Squads Dispatched 4 | . . 2 2 Investigation 2 | . . 1 1 Extermination . | . . . . Reinforcement 1 | . . 1 . Assault . | . . . . Garrison 1 | . . . 1 Intercept . | . . . . Searches Triggered . | . . . . Construction Impeded . | . . . . Haulers Reinforced . | . . . . Active Scanning Responses . | . . . . Cargo Convoy Interrupts . | . . . . Stealth | -11 -10 -9 -8 --------- Run | Yrd Mat Mat Mat Distress Signals 2 | . 1 . 1 Communications Jammed . | . . . . Distress Signals . | . . . . Times Spotted 54 | 1 8 31 14 Peak Tracking Total 9 | 1 5 5 9 Tactical Retreats 1 | . 1 . . Traps | -11 -10 -9 -8 ------- Run | Yrd Mat Mat Mat Traps Triggered 1 | . 1 . . Indirectly . | . . . . Trap Hack Attempts . | . . . . Triggered . | . . . . Disarmed . | . . . . Reprogrammed . | . . . . Reused . | . . . . Traps Extracted . | . . . . Installed . | . . . . Triggered . | . . . . Machines | -11 -10 -9 -8 ---------- Run | Yrd Mat Mat Mat Machines Disabled 10 | . . 10 . Max in Single Turn 2 | . . 2 . Machines Repaired . | . . . . Machines Dismantled . | . . . . Machines Sabotaged . | . . . . Overloaded Fab Kills . | . . . . Hacking | -11 -10 -9 -8 --------- Run | Yrd Mat Mat Mat Machines Accessed 6 | . 1 4 1 Terminals 4 | . 1 3 . Fabricators . | . . . . Repair Stations . | . . . . Recycling Units 2 | . . 1 1 Scanalyzers . | . . . . Garrison Access . | . . . . Total Hacks 20 | . 2 14 4 Successful 16 | . 1 12 3 Failed 4 | . 1 2 1 Catastrophic 1 | . . 1 . Database Lockouts . | . . . . Manual . | . . . . Terminals 13 | . 2 11 . Fabricators . | . . . . Repair Stations . | . . . . Recycling Units 7 | . . 3 4 Scanalyzers . | . . . . Garrison Access . | . . . . Terminal Hacks 11 | . 1 10 . Record 9 | . 1 8 . Scanalyzer Index 1 | . . 1 . Maintenance Status 1 | . . 1 . Fabricator Hacks . | . . . . Repair Station Hacks . | . . . . Recycling Unit Hacks 5 | . . 2 3 Recycle Component 2 | . . 1 1 Process 1 | . . . 1 Report Inventory 2 | . . 1 1 Scanalyzer . | . . . . Garrison Access Hacks . | . . . . Unauthorized Hacks . | . . . . Terminals . | . . . . Fabricators . | . . . . Repair Stations . | . . . . Recycling Units . | . . . . Scanalyzers . | . . . . Garrison Access . | . . . . Data Cores Recovered . | . . . . Used . | . . . . Hacking Detections 3 | . . 2 1 Full Trace Events 3 | . . 2 1 Feedback Events 1 | . . 1 . Corruption 1 | . . 1 . Feedback Blocked . | . . . . Robot Schematics Acquired . | . . . . Robots Built . | . . . . Authchips . | . . . . Time . | . . . . Total Robot Build Rating . | . . . . Part Schematics Acquired . | . . . . Parts Built . | . . . . Authchips . | . . . . Time . | . . . . Total Part Build Rating . | . . . . Parts Repaired . | . . . . Time . | . . . . Parts Recycled 2 | . . 1 1 Recycled Matter 41 | . . . 41 Retrieved Matter . | . . . . Retrieved Components . | . . . . Parts Scanalyzed . | . . . . Part Schematics Acquired . | . . . . Parts Damaged . | . . . . Bothacking | -11 -10 -9 -8 ------------ Run | Yrd Mat Mat Mat Used RIF Installer . | . . . . Robots Hacked . | . . . . Non-combat . | . . . . Combat . | . . . . Robot Hacks Applied . | . . . . Relay Couplers Released . | . . . . Fabnet Peak Effective % . | . . . . Robots Rewired . | . . . . Allies Hacked . | . . . . Hacks Repelled . | . . . . Allies | -11 -10 -9 -8 -------- Run | Yrd Mat Mat Mat Total Allies . | . . . . Largest Group . | . . . . Highest-Rated Group . | . . . . Highest-Rated Ally . | . . . . Total Orders . | . . . . Ally Attacks . | . . . . Total Damage . | . . . . Kills . | . . . . Allies Corrupted . | . . . . Allies Melted . | . . . . Intel | -11 -10 -9 -8 ------- Run | Yrd Mat Mat Mat Active Infowar (turns) 377 | . 44 260 73 Optics 304 | . 44 260 . Traps 73 | . . . 73 Robot Analysis Total . | . . . . Derelict Logs Recovered . | . . . . Drone Launches . | . . . . Drone Recoveries . | . . . . Exploration | -11 -10 -9 -8 ------------- Run | Yrd Mat Mat Mat Turns Passed 1081 | 70 151 718 142 Spaces Moved 697 | 68 142 376 111 Core 96 | 20 . 33 43 Treads 210 | . . 196 14 Legs 112 | . . 58 54 Wheels 270 | 48 133 89 . Hover . | . . . . Flight 9 | . 9 . . Fastest Speed 50 | 50 80 50 50 Average Speed 108 | 71 82 127 99 Slowest Speed 160 | 80 120 160 150 Overloaded Moves . | . . . . Propulsion Burnouts . | . . . . Robots Hopped . | . . . . Potential Cave-ins . | . . . . Cave-ins Triggered . | . . . . Exploration Rate (%) 19 | 6 20 39 12 Regions Visited 3 Branch Regions . Pre-discovered Areas . | . . . . Known Exits Taken . | . . . . Unknown Exits Taken 3 | 1 1 1 . Scrap Searched . | . . . . Spaces Dug . | . . . . Terrain Destroyed 77 | . . 77 . Melee . | . . . . Projectile 3 | . . 3 . AOE 74 | . . 74 . Terrain Rammed . | . . . . Walls Destroyed . | . . . . Machines Disabled . | . . . . Actions | -11 -10 -9 -8 --------- Run | Yrd Mat Mat Mat Total 943 | 83 171 555 134 Wait 94 | . . 94 . Move 694 | 67 141 375 111 Hop . | . . . . Pick Up 33 | 6 8 12 7 Fast Attach . | . . . . Attach 28 | 4 6 11 7 Detach 3 | . . 3 . Swap 4 | 1 2 1 . Drop 11 | . 8 3 . Fire 74 | 5 6 54 9 Melee . | . . . . Ram . | . . . . Kick . | . . . . Crush 2 | . . 2 . Escape Stasis . | . . . . Rewire . | . . . . Trap . | . . . . Miscellaneous . | . . . . Route ------- -11/Scrapyard -10/Materials -9/Materials -8/Materials History --------- Turn | Location | Event 2 | -11/Scrapyard | Met Revision 17 39 | -11/Scrapyard | Discovered new exit (range 8) 71 | -11/Scrapyard | Entered Materials 217 | -10/Materials | Discovered new exit (range 5) 222 | -10/Materials | Entered another Materials area 222 | -9/Materials | Evolved 2 slots: Power x1, Propulsion x1 313 | -9/Materials | Build established: Mutant 853 | -9/Materials | Core integrity fell below 50% 920 | -9/Materials | Core integrity fell below 20% 930 | -9/Materials | Lost 4 parts (1n1u2w) 935 | -9/Materials | Discovered new exit (range 4) 940 | -9/Materials | Entered another Materials area 940 | -8/Materials | Evolved 2 slots: Power x1, Utility x1 1019 | -8/Materials | Garrison activated, responded to threat 1047 | -8/Materials | Core integrity fell below 50% 1068 | -8/Materials | Core integrity fell below 20% 1082 | -8/Materials | Destroyed by G-47 Trooper with Particle Gun Last Messages --------------- Critical hit (Burn: +37). Slug penetrates Wall. Shotgun destroyed. Trap Scanner destroyed. Acquired 15 matter. Acquired Lgt. Ion Engine. Processing Tank disabled. Acquired Lgt. Ion Engine. R-06 Scavenger collects Flight Unit. Penetrated by Slug. Lgt. Ion Engine destroyed. Slug penetrates Wall. Lgt. Ion Engine destroyed. Acquired Hacking Suite. Acquired Adv. Treads. Slug penetrates Wall. S-10 Pest destroyed. Slug penetrates Wall. Penetrated by Slug. [Achievement: First Step to Greatness] Map ----- +----------------------------------------------------+ | ?????????? " #????????????????? | | ?????????# #????????????????? | | ?????????# ########+##### #????????????????? | | ?????????## ??????# !! # #????????????????? | | ??????????#????????# """ ! # #????????????????? | | ???????????????????# "Y" # +????????????????? | | ???????????????????# # #????????????????? | | ???????????????????# # #????????????????? | | ???????????????????# """ # #????????????????? | | ???????????????????# """ # #????????????????? | | ???????????????????# """ # ########?????????? | | ???????????????????# # # #?????????? | | ???????????????????########## + #?????????? | | ????????????????????????????# # """ #?????????? | | ????????????????????????????# # """ #?????????? | | ????????????????????????????# # """ #?????????? | | ????????????????????????????# # #?????????? | | ????????????????????????????# #############????? | | ????????????????????????????# # ! #????? | | ????????????????????????????# + " """ #????? | | ???????????????????????????## #%"G" """ ##???? | | ???????????????????????????#T #%" " "" #???? | | ???????????????????????????## # = = "" ##???? | | ?????????????????????######## # = " #????? | | ?????????????????????# ! # # [%%[ #????? | | ?????????????????????# @ h# #############????? | | ?????????????????????# g"" Y #????????????????? | | ?????????????????????# gT" #Y #????????????????? | | ????????????????????##Y% "" # #????????????????? | | ????????????????????# # #????????????????? | | ????????????????????######### #????????????????? | | ????????????????????????????# #????????????????? | | ????????????????????????????# #????????????????? | | ????????????????????????????# +????????????????? | | ????????????????????????????# #????????????????? | | ????????????????????????????# #????????????????? | | ????????????????????????????# #????????????????? | | ????????????????????????????? #????????????????? | | ????????????????????????????? #????????????????? | | ????????????????????????????? #????????????????? | | ????????????????????????????? ?????????????????? | | ?????????????????????????????????????????????????? | | ?????????????????????????????????????????????????? | | ?????????????????????????????????????????????????? | | ?????????????????????????????????????????????????? | | ?????????????????????????????????????????????????? | | ?????????????????????????????????????????????????? | | ?????????????????????????????????????????????????? | | ?????????????????????????????????????????????????? | | ?????????????????????????????????????????????????? | +----------------------------------------------------+ Best States ------------- Heat Dissipation 38 Energy Generation 20 Energy Capacity 300 Matter Stores 300 Matter Capacity 300 Sight Range 18 Terrain Scan Density 110 Evasion (%) 55 Recoil Reduction 1 Offensive Hacking 10 Item Schematics ----------------- None Robot Schematics ------------------ None Fabricated ------------ Nothing Repaired ---------- Nothing Alien Tech Used ----------------- None Achievements -------------- First Step to Greatness It's Just You One Hack Too Far Storm Trooper Troublemaker Uninvited Guest Challenges ------------ None Game ------ Seed PotentialHardenedSource Manual? 0 Play Time 00:41:22 Cumulative 0.6 hours Start 2025.07.27 @ 14:22:45 End 2025.07.27 @ 16:18:24 Sessions 3 Manual Loads 0 Difficulty Rogue Special Mode None Game No. 1 Rogue 1 Adventurer 0 Explorer 0 Win Type - Total 0 Types 0/0/0/0/0/0/0/0/0/0 Lore% 0 Gallery% 1 Achievement% 2 Wizard Run 0 Options --------- Layout 1 ASCII 0 Keyboard 0 Movement Mouse Keybinds 0 Fullscreen 1 Font 24/Smallcaps Map View 50x40 Zoom Use 0% Tactical HUD 0 Map Filters NONE Filters NONE Steam 1 RUN: d37404b0-9a2f-4835-bdd5-ca4bc16d75da